[Event "Titled Tuesday Blitz August 23 Early 2022"]
[White "Shuvalov, Evgenij"]
[Black "Ibrahimli, Murad"]
[WhiteFideId "4187237"]
[BlackFideId "13410229"]
[WhiteElo "2058"]
[BlackElo "2109"]
[Result "0-1"]
[Round "01"]
[TimeControl "180+1"]
[Date "2022.08.23"]
[WhiteClock "0:00:25"]
[BlackClock "0:01:05"]

1. Nf3 {[%clk 0:02:57]}  d5 {[%clk 0:02:59]} 2. c4 {[%clk 0:02:57]}  Nf6 {[%clk 0:03:00]} 3. cxd5 {[%clk 0:02:56]}  Nxd5 {[%clk 0:03:01]} 4. e4 {[%clk 0:02:54]}  Nf6 {[%clk 0:03:01]} 5. Nc3 {[%clk 0:02:53]}  c5 {[%clk 0:03:02]} 6. d4 {[%clk 0:02:52]}  cxd4 {[%clk 0:03:02]} 7. Qxd4 {[%clk 0:02:53]}  Qxd4 {[%clk 0:03:02]} 8. Nxd4 {[%clk 0:02:54]}  e6 {[%clk 0:02:44]} 9. Bf4 {[%clk 0:02:38]}  a6 {[%clk 0:02:43]} 10. Nb3 {[%clk 0:02:28]}  Bb4 {[%clk 0:02:42]} 11. f3 {[%clk 0:02:27]}  Nc6 {[%clk 0:02:42]} 12. Rc1 {[%clk 0:02:25]}  Bd7 {[%clk 0:02:41]} 13. Be2 {[%clk 0:02:24]}  Na5 {[%clk 0:02:35]} 14. Nxa5 {[%clk 0:02:22]}  Bxa5 {[%clk 0:02:36]} 15. Bd6 {[%clk 0:02:21]}  Bc6 {[%clk 0:02:35]} 16. O-O {[%clk 0:02:18]}  Rd8 {[%clk 0:02:31]} 17. Rfd1 {[%clk 0:02:17]}  Nd7 {[%clk 0:02:11]} 18. Kf1 {[%clk 0:02:13]}  f6 {[%clk 0:02:04]} 19. Bc4 {[%clk 0:02:11]}  Kf7 {[%clk 0:02:04]} 20. Ne2 {[%clk 0:02:09]}  Ne5 {[%clk 0:01:52]} 21. Bb3 {[%clk 0:02:02]}  Bb5 {[%clk 0:01:46]} 22. Bc7 {[%clk 0:01:54]}  Rxd1+ {[%clk 0:01:44]} 23. Bxd1 {[%clk 0:01:53]}  Rc8 {[%clk 0:01:41]} 24. Bxa5 {[%clk 0:01:47]}  Rxc1 {[%clk 0:01:40]} 25. Ke1 {[%clk 0:01:46]}  Nc4 {[%clk 0:01:17]} 26. Bd2 {[%clk 0:01:17]}  Nxd2 {[%clk 0:01:17]} 27. Kxd2 {[%clk 0:01:17]}  Rc7 {[%clk 0:01:17]} 28. Nc3 {[%clk 0:01:16]}  Bf1 {[%clk 0:01:14]} 29. g3 {[%clk 0:01:15]}  Ke7 {[%clk 0:01:14]} 30. Ke3 {[%clk 0:01:14]}  b5 {[%clk 0:01:13]} 31. a3 {[%clk 0:01:13]}  Bc4 {[%clk 0:01:11]} 32. f4 {[%clk 0:01:10]}  e5 {[%clk 0:01:09]} 33. Be2 {[%clk 0:00:59]}  Be6 {[%clk 0:01:08]} 34. Bd3 {[%clk 0:00:57]}  h6 {[%clk 0:01:01]} 35. f5 {[%clk 0:00:50]}  Bf7 {[%clk 0:01:01]} 36. Be2 {[%clk 0:00:44]}  Rc8 {[%clk 0:01:01]} 37. Bd3 {[%clk 0:00:44]}  Kd6 {[%clk 0:01:01]} 38. Be2 {[%clk 0:00:44]}  Kc5 {[%clk 0:01:01]} 39. Bd3 {[%clk 0:00:44]}  Rb8 {[%clk 0:01:01]} 40. b4+ {[%clk 0:00:43]}  Kd6 {[%clk 0:01:00]} 41. Be2 {[%clk 0:00:40]}  Rc8 {[%clk 0:01:00]} 42. Kd2 {[%clk 0:00:40]}  Bc4 {[%clk 0:01:01]} 43. Bd1 {[%clk 0:00:39]}  Kc6 {[%clk 0:01:00]} 44. Bc2 {[%clk 0:00:37]}  Kb6 {[%clk 0:01:00]} 45. Bb1 {[%clk 0:00:36]}  Rd8+ {[%clk 0:01:01]} 46. Ke3 {[%clk 0:00:36]}  a5 {[%clk 0:01:02]} 47. Bc2 {[%clk 0:00:35]}  axb4 {[%clk 0:01:02]} 48. axb4 {[%clk 0:00:36]}  Ra8 {[%clk 0:01:02]} 49. Kd2 {[%clk 0:00:34]}  Rd8+ {[%clk 0:01:02]} 50. Ke3 {[%clk 0:00:34]}  Rd4 {[%clk 0:01:03]} 51. Bb1 {[%clk 0:00:32]}  Bf7 {[%clk 0:01:02]} 52. Ba2 {[%clk 0:00:29]}  Bxa2 {[%clk 0:00:58]} 53. Nxa2 {[%clk 0:00:30]}  h5 {[%clk 0:00:58]} 54. Nc3 {[%clk 0:00:30]}  Kc6 {[%clk 0:00:57]} 55. Nd5 {[%clk 0:00:28]}  Rxd5 {[%clk 0:00:57]} 56. exd5+ {[%clk 0:00:28]}  Kxd5 {[%clk 0:00:58]} 57. h3 {[%clk 0:00:27]}  e4 {[%clk 0:00:59]} 58. g4 {[%clk 0:00:25]}  hxg4 {[%clk 0:01:00]} 59. hxg4 {[%clk 0:00:26]}  Ke5 {[%clk 0:01:00]} 60. Ke2 {[%clk 0:00:23]}  Kd4 {[%clk 0:01:00]} 61. Kd2 {[%clk 0:00:23]}  e3+ {[%clk 0:01:01]} 62. Ke2 {[%clk 0:00:24]}  Ke4 {[%clk 0:01:02]} 63. Ke1 {[%clk 0:00:23]}  Kd3 {[%clk 0:01:02]} 64. Kd1 {[%clk 0:00:24]}  Kc3 {[%clk 0:01:01]} 65. Ke2 {[%clk 0:00:24]}  Kxb4 {[%clk 0:01:01]} 66. Kxe3 {[%clk 0:00:25]}  Kc3 {[%clk 0:01:02]} 67. Ke4 {[%clk 0:00:24]}  b4 {[%clk 0:01:02]} 68. Kd5 {[%clk 0:00:24]}  b3 {[%clk 0:01:03]} 69. Ke6 {[%clk 0:00:25]}  b2 {[%clk 0:01:04]} 70. Kf7 {[%clk 0:00:26]}  b1=Q {[%clk 0:01:04]} 71. Kxg7 {[%clk 0:00:26]}  Qb6 {[%clk 0:01:04]} 72. g5 {[%clk 0:00:25]}  fxg5 {[%clk 0:01:04]} 73. f6 {[%clk 0:00:25]}  g4 {[%clk 0:01:04]} 74. f7 {[%clk 0:00:26]}  Qc7 {[%clk 0:01:05]} 75. Kg8 {[%clk 0:00:25]}  Qxf7+ {[%clk 0:01:05]} 76. Kxf7 {[%clk 0:00:25]}  g3 {[%clk 0:01:05]} 0-1


[Site "https://www.chess.com"]

[Event "Titled Tuesday Blitz August 23 Early 2022"]
[White "Timofeev, Artyom"]
[Black "Petesch, Gabriel"]
[WhiteFideId "4140419"]
[BlackFideId "2032465"]
[WhiteElo "2578"]
[BlackElo "2374"]
[Result "1-0"]
[Round "01"]
[TimeControl "180+1"]
[Date "2022.08.23"]
[WhiteClock "0:00:58"]
[BlackClock "0:00:19"]

1. e4 {[%clk 0:03:00]}  e6 {[%clk 0:02:27]} 2. Qe2 {[%clk 0:02:59]}  Nc6 {[%clk 0:02:03]} 3. Nf3 {[%clk 0:02:57]}  Bc5 {[%clk 0:01:49]} 4. c3 {[%clk 0:02:55]}  d5 {[%clk 0:01:38]} 5. exd5 {[%clk 0:02:49]}  Qxd5 {[%clk 0:01:37]} 6. d4 {[%clk 0:02:48]}  Be7 {[%clk 0:01:37]} 7. g3 {[%clk 0:02:47]}  Nf6 {[%clk 0:01:37]} 8. Bg2 {[%clk 0:02:46]}  O-O {[%clk 0:01:36]} 9. O-O {[%clk 0:02:46]}  Qd8 {[%clk 0:01:28]} 10. Nbd2 {[%clk 0:02:43]}  Nd5 {[%clk 0:01:24]} 11. Ne4 {[%clk 0:02:27]}  Bd7 {[%clk 0:01:13]} 12. Rd1 {[%clk 0:02:23]}  Nf6 {[%clk 0:01:12]} 13. Ned2 {[%clk 0:02:20]}  Re8 {[%clk 0:01:08]} 14. Nc4 {[%clk 0:02:19]}  Bf8 {[%clk 0:01:07]} 15. a4 {[%clk 0:02:18]}  Nd5 {[%clk 0:01:06]} 16. Bg5 {[%clk 0:02:15]}  Be7 {[%clk 0:01:06]} 17. h4 {[%clk 0:02:14]}  Bf6 {[%clk 0:01:05]} 18. Rac1 {[%clk 0:01:58]}  h6 {[%clk 0:01:01]} 19. Bd2 {[%clk 0:01:55]}  Nb6 {[%clk 0:00:59]} 20. Ra1 {[%clk 0:01:28]}  Nxc4 {[%clk 0:00:58]} 21. Qxc4 {[%clk 0:01:27]}  Na5 {[%clk 0:00:59]} 22. Qa2 {[%clk 0:01:26]}  Bc6 {[%clk 0:00:51]} 23. c4 {[%clk 0:01:20]}  b6 {[%clk 0:00:47]} 24. b4 {[%clk 0:01:20]}  Nb7 {[%clk 0:00:43]} 25. b5 {[%clk 0:01:19]}  Be4 {[%clk 0:00:40]} 26. Bf4 {[%clk 0:01:14]}  Qe7 {[%clk 0:00:34]} 27. Qe2 {[%clk 0:01:11]}  Bg6 {[%clk 0:00:21]} 28. g4 {[%clk 0:00:58]}  Rab8 {[%clk 0:00:19]} 29. g5 {[%clk 0:00:58]} 1-0


[Site "https://www.chess.com"]

[Event "Titled Tuesday Blitz August 23 Early 2022"]
[White "Zou, Chen"]
[Black "Jain, Naveen"]
[WhiteFideId "8610959"]
[BlackFideId "5003970"]
[WhiteElo "2276"]
[BlackElo "2036"]
[Result "1-0"]
[Round "01"]
[TimeControl "180+1"]
[Date "2022.08.23"]
[WhiteClock "0:00:54"]
[BlackClock "0:00:01"]

1. d4 {[%clk 0:02:43]}  Nf6 {[%clk 0:02:53]} 2. Bf4 {[%clk 0:02:35]}  c5 {[%clk 0:02:52]} 3. d5 {[%clk 0:02:29]}  d6 {[%clk 0:02:50]} 4. Nc3 {[%clk 0:02:28]}  g6 {[%clk 0:02:50]} 5. e4 {[%clk 0:02:24]}  Bg7 {[%clk 0:02:50]} 6. a4 {[%clk 0:02:22]}  O-O {[%clk 0:02:49]} 7. Nf3 {[%clk 0:02:19]}  Qa5 {[%clk 0:02:47]} 8. Bd2 {[%clk 0:02:15]}  e6 {[%clk 0:02:15]} 9. dxe6 {[%clk 0:02:07]}  Bxe6 {[%clk 0:02:14]} 10. Bd3 {[%clk 0:02:01]}  Nc6 {[%clk 0:01:59]} 11. O-O {[%clk 0:01:57]}  Qb6 {[%clk 0:01:49]} 12. a5 {[%clk 0:01:45]}  Qd8 {[%clk 0:01:36]} 13. a6 {[%clk 0:01:44]}  b6 {[%clk 0:01:32]} 14. h3 {[%clk 0:01:28]}  Nd7 {[%clk 0:01:28]} 15. Bg5 {[%clk 0:01:26]}  Qc8 {[%clk 0:01:18]} 16. Re1 {[%clk 0:01:25]}  Nde5 {[%clk 0:01:16]} 17. Nxe5 {[%clk 0:01:22]}  Bxe5 {[%clk 0:01:13]} 18. Bf1 {[%clk 0:01:21]}  Nb4 {[%clk 0:01:08]} 19. Nb5 {[%clk 0:01:13]}  Qd7 {[%clk 0:00:51]} 20. c3 {[%clk 0:01:11]}  Nc6 {[%clk 0:00:47]} 21. f4 {[%clk 0:01:11]}  Bg7 {[%clk 0:00:42]} 22. Qxd6 {[%clk 0:01:09]}  Qxd6 {[%clk 0:00:27]} 23. Nxd6 {[%clk 0:01:09]}  f6 {[%clk 0:00:20]} 24. Bh4 {[%clk 0:01:08]}  Na5 {[%clk 0:00:20]} 25. f5 {[%clk 0:01:05]}  Bb3 {[%clk 0:00:09]} 26. Ra3 {[%clk 0:00:56]}  Rfd8 {[%clk 0:00:09]} 27. Nb7 {[%clk 0:00:54]}  Nxb7 {[%clk 0:00:02]} 28. axb7 {[%clk 0:00:55]}  Rab8 {[%clk 0:00:01]} 29. Rxb3 {[%clk 0:00:54]} 1-0


[Site "https://www.chess.com"]

[Event "Titled Tuesday Blitz August 23 Early 2022"]
[White "Abdrlauf, Elham"]
[Black "Vachylia, Andrii"]
[WhiteFideId "1533533"]
[BlackFideId "14137224"]
[WhiteElo "2430"]
[BlackElo "2318"]
[Result "0-1"]
[Round "02"]
[TimeControl "180+1"]
[Date "2022.08.23"]
[WhiteClock "0:00:08"]
[BlackClock "0:00:19"]

1. e4 {[%clk 0:02:59]}  c5 {[%clk 0:02:58]} 2. Nf3 {[%clk 0:02:59]}  d6 {[%clk 0:02:58]} 3. d4 {[%clk 0:03:00]}  cxd4 {[%clk 0:02:59]} 4. Nxd4 {[%clk 0:03:01]}  Nf6 {[%clk 0:02:59]} 5. Nc3 {[%clk 0:03:00]}  a6 {[%clk 0:02:59]} 6. Bc4 {[%clk 0:03:00]}  e6 {[%clk 0:02:59]} 7. Bb3 {[%clk 0:02:59]}  Nbd7 {[%clk 0:02:58]} 8. f4 {[%clk 0:02:59]}  Nc5 {[%clk 0:02:53]} 9. f5 {[%clk 0:02:56]}  Be7 {[%clk 0:02:49]} 10. Qf3 {[%clk 0:02:52]}  O-O {[%clk 0:02:47]} 11. Be3 {[%clk 0:02:46]}  e5 {[%clk 0:02:36]} 12. Nde2 {[%clk 0:02:44]}  b5 {[%clk 0:02:36]} 13. O-O-O {[%clk 0:02:37]}  Qc7 {[%clk 0:02:31]} 14. Bxc5 {[%clk 0:02:28]}  dxc5 {[%clk 0:02:26]} 15. Nd5 {[%clk 0:02:27]}  Nxd5 {[%clk 0:02:19]} 16. Bxd5 {[%clk 0:02:28]}  Rb8 {[%clk 0:02:17]} 17. g4 {[%clk 0:02:14]}  c4 {[%clk 0:01:50]} 18. h4 {[%clk 0:02:09]}  b4 {[%clk 0:01:50]} 19. g5 {[%clk 0:02:02]}  b3 {[%clk 0:01:45]} 20. a3 {[%clk 0:01:38]}  bxc2 {[%clk 0:01:22]} 21. Kxc2 {[%clk 0:01:39]}  Bd7 {[%clk 0:01:08]} 22. Nc3 {[%clk 0:01:28]}  Qa5 {[%clk 0:00:56]} 23. Rb1 {[%clk 0:01:23]}  Ba4+ {[%clk 0:00:45]} 24. Kc1 {[%clk 0:01:02]}  Rb3 {[%clk 0:00:38]} 25. Rh3 {[%clk 0:00:39]}  Rfb8 {[%clk 0:00:25]} 26. Qh5 {[%clk 0:00:19]}  Bxa3 {[%clk 0:00:22]} 27. Kd2 {[%clk 0:00:08]}  Bxb2 {[%clk 0:00:19]} 0-1


[Site "https://www.chess.com"]

[Event "Titled Tuesday Blitz August 23 Early 2022"]
[White "Acor, Corey"]
[Black "Cori T., Deysi"]
[WhiteFideId "2024861"]
[BlackFideId "3801934"]
[WhiteElo "2340"]
[BlackElo "2341"]
[Result "1/2-1/2"]
[Round "02"]
[TimeControl "180+1"]
[Date "2022.08.23"]
[WhiteClock "0:01:09"]
[BlackClock "0:00:24"]

1. e4 {[%clk 0:03:00]}  e6 {[%clk 0:02:56]} 2. d3 {[%clk 0:02:59]}  d5 {[%clk 0:02:55]} 3. Nd2 {[%clk 0:02:59]}  Nc6 {[%clk 0:02:54]} 4. g3 {[%clk 0:02:59]}  dxe4 {[%clk 0:02:51]} 5. dxe4 {[%clk 0:02:57]}  Nf6 {[%clk 0:02:51]} 6. Bg2 {[%clk 0:02:53]}  e5 {[%clk 0:02:51]} 7. Ngf3 {[%clk 0:02:51]}  a5 {[%clk 0:02:52]} 8. O-O {[%clk 0:02:50]}  Bc5 {[%clk 0:02:51]} 9. Qe2 {[%clk 0:02:36]}  b6 {[%clk 0:02:50]} 10. b3 {[%clk 0:02:32]}  Ba6 {[%clk 0:02:48]} 11. c4 {[%clk 0:02:32]}  O-O {[%clk 0:02:47]} 12. Bb2 {[%clk 0:02:32]}  Qe7 {[%clk 0:02:46]} 13. Rad1 {[%clk 0:02:33]}  Rad8 {[%clk 0:02:45]} 14. h3 {[%clk 0:02:30]}  Rfe8 {[%clk 0:02:45]} 15. Nb1 {[%clk 0:02:30]}  Nd4 {[%clk 0:02:43]} 16. Nxd4 {[%clk 0:02:27]}  exd4 {[%clk 0:02:44]} 17. Rfe1 {[%clk 0:02:26]}  Bb4 {[%clk 0:02:33]} 18. Nd2 {[%clk 0:02:23]}  Bb7 {[%clk 0:02:32]} 19. Qd3 {[%clk 0:02:14]}  c5 {[%clk 0:02:13]} 20. Re2 {[%clk 0:02:12]}  Bxd2 {[%clk 0:01:53]} 21. Rdxd2 {[%clk 0:02:06]}  Bc6 {[%clk 0:01:07]} 22. f4 {[%clk 0:01:52]}  Nxe4 {[%clk 0:01:03]} 23. Rd1 {[%clk 0:01:47]}  f5 {[%clk 0:01:03]} 24. Rde1 {[%clk 0:01:46]}  Qf7 {[%clk 0:00:59]} 25. g4 {[%clk 0:01:43]}  g6 {[%clk 0:00:57]} 26. Bc1 {[%clk 0:01:41]}  Nc3 {[%clk 0:00:53]} 27. Bxc6 {[%clk 0:01:39]}  Rxe2 {[%clk 0:00:53]} 28. Rxe2 {[%clk 0:01:40]}  Nxe2+ {[%clk 0:00:51]} 29. Qxe2 {[%clk 0:01:41]}  d3 {[%clk 0:00:52]} 30. Qd2 {[%clk 0:01:34]}  fxg4 {[%clk 0:00:44]} 31. hxg4 {[%clk 0:01:33]}  Qe6 {[%clk 0:00:38]} 32. Bd5 {[%clk 0:01:31]}  Rxd5 {[%clk 0:00:37]} 33. cxd5 {[%clk 0:01:32]}  Qxg4+ {[%clk 0:00:38]} 34. Kf2 {[%clk 0:01:29]}  Qh4+ {[%clk 0:00:37]} 35. Ke3 {[%clk 0:01:28]}  Qh3+ {[%clk 0:00:33]} 36. Ke4 {[%clk 0:01:23]}  Qf5+ {[%clk 0:00:27]} 37. Ke3 {[%clk 0:01:23]}  Qh3+ {[%clk 0:00:25]} 38. Kf2 {[%clk 0:01:12]}  Qh2+ {[%clk 0:00:24]} 39. Kf3 {[%clk 0:01:11]}  Qh3+ {[%clk 0:00:24]} 40. Ke4 {[%clk 0:01:09]}  Qf5+ {[%clk 0:00:24]} 41. Ke3 {[%clk 0:01:09]}  Qh3+ {[%clk 0:00:24]} 1/2-1/2


[Site "https://www.chess.com"]

[Event "Titled Tuesday Blitz August 23 Early 2022"]
[White "Atanasov, Anthony"]
[Black "Mitrabha, Guha"]
[WhiteFideId "2623897"]
[BlackFideId "5057000"]
[WhiteElo "1928"]
[BlackElo "2499"]
[Result "0-1"]
[Round "02"]
[TimeControl "180+1"]
[Date "2022.08.23"]
[WhiteClock "0:00:01"]
[BlackClock "0:01:44"]

1. d4 {[%clk 0:03:00]}  Nf6 {[%clk 0:02:58]} 2. Nf3 {[%clk 0:03:00]}  e6 {[%clk 0:02:58]} 3. Bf4 {[%clk 0:03:00]}  b6 {[%clk 0:02:58]} 4. e3 {[%clk 0:03:00]}  Bb7 {[%clk 0:02:58]} 5. Nbd2 {[%clk 0:02:56]}  d6 {[%clk 0:02:59]} 6. Bd3 {[%clk 0:02:55]}  Nbd7 {[%clk 0:02:59]} 7. h3 {[%clk 0:02:54]}  g6 {[%clk 0:02:59]} 8. c3 {[%clk 0:02:54]}  Bg7 {[%clk 0:02:57]} 9. O-O {[%clk 0:02:55]}  e5 {[%clk 0:02:56]} 10. Bg5 {[%clk 0:02:47]}  h6 {[%clk 0:02:53]} 11. dxe5 {[%clk 0:02:35]}  hxg5 {[%clk 0:02:32]} 12. exf6 {[%clk 0:02:35]}  Bxf6 {[%clk 0:02:33]} 13. Be4 {[%clk 0:02:32]}  d5 {[%clk 0:02:32]} 14. Bd3 {[%clk 0:02:30]}  Kf8 {[%clk 0:02:32]} 15. e4 {[%clk 0:02:27]}  Nc5 {[%clk 0:02:32]} 16. e5 {[%clk 0:02:02]}  Nxd3 {[%clk 0:02:31]} 17. exf6 {[%clk 0:02:02]}  Qxf6 {[%clk 0:02:32]} 18. Qc2 {[%clk 0:01:41]}  Nf4 {[%clk 0:02:30]} 19. Rfe1 {[%clk 0:01:31]}  Kg7 {[%clk 0:02:28]} 20. Qa4 {[%clk 0:01:22]}  c5 {[%clk 0:02:16]} 21. Ne5 {[%clk 0:01:14]}  d4 {[%clk 0:02:07]} 22. Ng4 {[%clk 0:00:41]}  Nxh3+ {[%clk 0:01:49]} 23. gxh3 {[%clk 0:00:17]}  Rxh3 {[%clk 0:01:50]} 24. Re4 {[%clk 0:00:14]}  Bxe4 {[%clk 0:01:47]} 25. Nxe4 {[%clk 0:00:13]}  Qf3 {[%clk 0:01:47]} 26. Ng3 {[%clk 0:00:05]}  Rxg3+ {[%clk 0:01:47]} 27. fxg3 {[%clk 0:00:06]}  Qxg3+ {[%clk 0:01:48]} 28. Kf1 {[%clk 0:00:06]}  Qxg4 {[%clk 0:01:48]} 29. cxd4 {[%clk 0:00:07]}  Rh8 {[%clk 0:01:47]} 30. Qc6 {[%clk 0:00:02]}  Qf4+ {[%clk 0:01:45]} 31. Ke1 {[%clk 0:00:02]}  Rh2 {[%clk 0:01:45]} 32. Rd1 {[%clk 0:00:01]}  Qf2# {[%clk 0:01:44]} 0-1


[Site "https://www.chess.com"]

[Event "Titled Tuesday Blitz August 23 Early 2022"]
[White "Blanco Ronquillo, Humberto L."]
[Black "Zhigalko, Sergei"]
[WhiteFideId "3504239"]
[BlackFideId "13502956"]
[WhiteElo "2425"]
[BlackElo "2662"]
[Result "0-1"]
[Round "02"]
[TimeControl "180+1"]
[Date "2022.08.23"]
[WhiteClock "0:00:57"]
[BlackClock "0:00:25"]

1. d4 {[%clk 0:03:00]}  Nf6 {[%clk 0:02:57]} 2. c4 {[%clk 0:02:59]}  e6 {[%clk 0:02:58]} 3. Nf3 {[%clk 0:02:59]}  b6 {[%clk 0:02:57]} 4. g3 {[%clk 0:02:58]}  Ba6 {[%clk 0:02:56]} 5. Qa4 {[%clk 0:02:59]}  Bb7 {[%clk 0:02:56]} 6. Bg2 {[%clk 0:02:59]}  c5 {[%clk 0:02:57]} 7. O-O {[%clk 0:03:00]}  cxd4 {[%clk 0:02:57]} 8. Rd1 {[%clk 0:03:01]}  Be7 {[%clk 0:02:32]} 9. Bf4 {[%clk 0:03:00]}  O-O {[%clk 0:02:32]} 10. Nxd4 {[%clk 0:03:00]}  Bxg2 {[%clk 0:02:31]} 11. Kxg2 {[%clk 0:03:01]}  Qc8 {[%clk 0:02:22]} 12. Nb5 {[%clk 0:03:01]}  Qc6+ {[%clk 0:02:16]} 13. f3 {[%clk 0:03:01]}  a6 {[%clk 0:02:16]} 14. N5c3 {[%clk 0:03:00]}  Qb7 {[%clk 0:02:13]} 15. Bd6 {[%clk 0:02:58]}  Bxd6 {[%clk 0:02:10]} 16. Rxd6 {[%clk 0:02:59]}  Rc8 {[%clk 0:02:08]} 17. Na3 {[%clk 0:02:58]}  Nc6 {[%clk 0:02:01]} 18. Qd1 {[%clk 0:02:44]}  Na5 {[%clk 0:01:53]} 19. Qd4 {[%clk 0:02:42]}  Rab8 {[%clk 0:01:45]} 20. Rd1 {[%clk 0:02:37]}  Qc7 {[%clk 0:01:45]} 21. Ne4 {[%clk 0:02:25]}  Nxe4 {[%clk 0:01:34]} 22. Qxe4 {[%clk 0:02:24]}  Rd8 {[%clk 0:01:11]} 23. Qd4 {[%clk 0:02:24]}  Rb7 {[%clk 0:01:08]} 24. b3 {[%clk 0:02:24]}  h6 {[%clk 0:01:04]} 25. Nc2 {[%clk 0:02:22]}  Nc6 {[%clk 0:00:51]} 26. Qe3 {[%clk 0:02:11]}  b5 {[%clk 0:00:46]} 27. c5 {[%clk 0:02:07]}  b4 {[%clk 0:00:42]} 28. Nd4 {[%clk 0:02:06]}  Ne7 {[%clk 0:00:41]} 29. Nc2 {[%clk 0:01:52]}  Nf5 {[%clk 0:00:40]} 30. Qd3 {[%clk 0:01:05]}  Qxc5 {[%clk 0:00:26]} 31. Rxa6 {[%clk 0:01:03]}  Qxc2 {[%clk 0:00:25]} 32. Qxc2 {[%clk 0:00:56]}  Ne3+ {[%clk 0:00:25]} 33. Kf2 {[%clk 0:00:57]}  Nxc2 {[%clk 0:00:26]} 34. Rd2 {[%clk 0:00:57]}  Na3 {[%clk 0:00:25]} 0-1


[Site "https://www.chess.com"]

[Event "Titled Tuesday Blitz August 23 Early 2022"]
[White "Bluebaum, Matthias"]
[Black "Guz, Ari"]
[WhiteFideId "24651516"]
[BlackFideId "2825759"]
[WhiteElo "2603"]
[BlackElo "1913"]
[Result "1/2-1/2"]
[Round "02"]
[TimeControl "180+1"]
[Date "2022.08.23"]
[WhiteClock "0:00:09"]
[BlackClock "0:00:13"]

1. d4 {[%clk 0:03:00]}  e6 {[%clk 0:02:54]} 2. c4 {[%clk 0:03:01]}  d5 {[%clk 0:02:54]} 3. Nc3 {[%clk 0:03:01]}  a6 {[%clk 0:02:55]} 4. cxd5 {[%clk 0:03:01]}  exd5 {[%clk 0:02:56]} 5. a3 {[%clk 0:03:02]}  h6 {[%clk 0:02:56]} 6. Bf4 {[%clk 0:02:46]}  Nf6 {[%clk 0:02:56]} 7. e3 {[%clk 0:02:45]}  Bd6 {[%clk 0:02:57]} 8. Bxd6 {[%clk 0:02:44]}  Qxd6 {[%clk 0:02:57]} 9. Bd3 {[%clk 0:02:45]}  O-O {[%clk 0:02:57]} 10. Nge2 {[%clk 0:02:45]}  c6 {[%clk 0:02:56]} 11. h3 {[%clk 0:02:46]}  Re8 {[%clk 0:02:55]} 12. Qc2 {[%clk 0:02:46]}  Nbd7 {[%clk 0:02:53]} 13. O-O {[%clk 0:02:46]}  Nf8 {[%clk 0:02:52]} 14. b4 {[%clk 0:02:46]}  Ne6 {[%clk 0:02:52]} 15. Rab1 {[%clk 0:02:46]}  Ng5 {[%clk 0:02:51]} 16. Nf4 {[%clk 0:02:45]}  Nfe4 {[%clk 0:02:50]} 17. Na4 {[%clk 0:02:37]}  Bf5 {[%clk 0:02:10]} 18. Nc5 {[%clk 0:02:31]}  Qe7 {[%clk 0:01:51]} 19. h4 {[%clk 0:02:11]}  Ne6 {[%clk 0:01:46]} 20. Nfxe6 {[%clk 0:02:07]}  fxe6 {[%clk 0:01:43]} 21. Nxe4 {[%clk 0:02:08]}  dxe4 {[%clk 0:01:39]} 22. Bxe4 {[%clk 0:02:08]}  Qxh4 {[%clk 0:01:36]} 23. Bxf5 {[%clk 0:02:07]}  exf5 {[%clk 0:01:37]} 24. Qxf5 {[%clk 0:02:08]}  Rad8 {[%clk 0:01:37]} 25. g3 {[%clk 0:02:07]}  Qe7 {[%clk 0:01:35]} 26. a4 {[%clk 0:02:00]}  Rd5 {[%clk 0:01:35]} 27. Qh3 {[%clk 0:01:55]}  Qe4 {[%clk 0:01:13]} 28. Qg2 {[%clk 0:01:53]}  Qc2 {[%clk 0:01:13]} 29. b5 {[%clk 0:01:52]}  Qxa4 {[%clk 0:01:08]} 30. bxc6 {[%clk 0:01:48]}  Qxc6 {[%clk 0:01:08]} 31. Rfc1 {[%clk 0:01:47]}  Qd7 {[%clk 0:01:09]} 32. Rc7 {[%clk 0:01:46]}  Qxc7 {[%clk 0:00:54]} 33. Qxd5+ {[%clk 0:01:46]}  Kh8 {[%clk 0:00:53]} 34. Rxb7 {[%clk 0:01:46]}  Qc1+ {[%clk 0:00:53]} 35. Kg2 {[%clk 0:01:45]}  Qc2 {[%clk 0:00:46]} 36. Rb6 {[%clk 0:01:24]}  Rf8 {[%clk 0:00:41]} 37. Kh3 {[%clk 0:00:44]}  Qxf2 {[%clk 0:00:39]} 38. Qe4 {[%clk 0:00:34]}  Qf1+ {[%clk 0:00:39]} 39. Kh4 {[%clk 0:00:35]}  g5+ {[%clk 0:00:20]} 40. Kh5 {[%clk 0:00:27]}  Qh3+ {[%clk 0:00:19]} 41. Kg6 {[%clk 0:00:27]}  Rg8+ {[%clk 0:00:20]} 42. Kf7 {[%clk 0:00:20]}  Qf1+ {[%clk 0:00:20]} 43. Rf6 {[%clk 0:00:18]}  Rf8+ {[%clk 0:00:20]} 44. Kxf8 {[%clk 0:00:17]}  Qxf6+ {[%clk 0:00:21]} 45. Ke8 {[%clk 0:00:18]}  a5 {[%clk 0:00:20]} 46. d5 {[%clk 0:00:17]}  Kg7 {[%clk 0:00:19]} 47. Kd7 {[%clk 0:00:16]}  Qf7+ {[%clk 0:00:15]} 48. Kc6 {[%clk 0:00:16]}  Qa7 {[%clk 0:00:14]} 49. Qe5+ {[%clk 0:00:14]}  Kg6 {[%clk 0:00:14]} 50. d6 {[%clk 0:00:14]}  a4 {[%clk 0:00:14]} 51. Qe4+ {[%clk 0:00:15]}  Kg7 {[%clk 0:00:14]} 52. Qe5+ {[%clk 0:00:13]}  Kg6 {[%clk 0:00:14]} 53. d7 {[%clk 0:00:13]}  Qa6+ {[%clk 0:00:13]} 54. Kc7 {[%clk 0:00:14]}  Qa7+ {[%clk 0:00:14]} 55. Kc8 {[%clk 0:00:14]}  Qa6+ {[%clk 0:00:14]} 56. Kc7 {[%clk 0:00:15]}  Qa7+ {[%clk 0:00:14]} 57. Kd8 {[%clk 0:00:15]}  a3 {[%clk 0:00:14]} 58. Qe6+ {[%clk 0:00:15]}  Kh5 {[%clk 0:00:14]} 59. Qa2 {[%clk 0:00:13]}  Qb6+ {[%clk 0:00:13]} 60. Ke7 {[%clk 0:00:13]}  Qxe3+ {[%clk 0:00:13]} 61. Kf7 {[%clk 0:00:13]}  Qf3+ {[%clk 0:00:13]} 62. Ke8 {[%clk 0:00:13]}  Qe4+ {[%clk 0:00:13]} 63. Kf8 {[%clk 0:00:13]}  Qf5+ {[%clk 0:00:12]} 64. Ke7 {[%clk 0:00:13]}  Qe5+ {[%clk 0:00:13]} 65. Kd8 {[%clk 0:00:13]}  Qb8+ {[%clk 0:00:12]} 66. Ke7 {[%clk 0:00:13]}  Qe5+ {[%clk 0:00:13]} 67. Kf7 {[%clk 0:00:14]}  Qf5+ {[%clk 0:00:13]} 68. Ke8 {[%clk 0:00:14]}  Qe5+ {[%clk 0:00:13]} 69. Kf8 {[%clk 0:00:13]}  Qf6+ {[%clk 0:00:12]} 70. Ke8 {[%clk 0:00:11]}  Qe5+ {[%clk 0:00:12]} 71. Kf8 {[%clk 0:00:08]}  Qf6+ {[%clk 0:00:13]} 72. Ke8 {[%clk 0:00:09]}  Qe5+ {[%clk 0:00:13]} 1/2-1/2


[Site "https://www.chess.com"]